[Event "Uppsala GM June 2022"]
[Site "Uppsala"]
[Date "2022.06.15"]
[Round "3.3"]
[White "Sorensen, Hampus"]
[Black "Roshka, Yevgeniy"]
[Result "1-0"]
[ECO "E90"]
[WhiteElo "2372"]
[BlackElo "2468"]
[Annotator "TA"]
[PlyCount "171"]
[EventDate "2022.06.09"]
[EventType "tourn"]
[EventCountry "SWE"]
[SourceTitle "playchess.com"]
[Source "ChessBase"]
[SourceQuality "1"]
[TimeControl "5400+30"]

{[%evp 17,171,75,89,87,106,91,94,20,20,23,22,23,29,17,33,12,12,0,0,10,0,0,41,41,41,41,41,41,41,41,41,41,41,41,41,41,41,41,56,48,119,118,126,117,118,125,222,197,376,364,354,352,334,228,635,624,635,622,622,600,597,593,580,570,618,621,732,710,744,664,609,470,743,922,822,795,646,265,391,0,645,0,426,419,419,412,423,393,400,400,375,278,29967,29959,12800,6598,2011,0,0,0,677,662,598,590,493,370,5501,0,795,826,764,779,779,733,662,0,497,333,308,261,249,102,502,468,706,495,439,137,270,270,270,270,260,235,223,137,29960,29963,2108,73,93,0,29968,29970,29963,0,0,0,29957,29959,29973,29975,29975,29975,29983,29984]} 1. d4 {[%emt 0:00:04]} Nf6 {[%emt 0:00:06]} 2. c4 {[%emt 0:00:14]} c5 {[%emt 0:00:04]} 3. d5 {[%emt 0:00:11]} e6 {[%emt 0:00:04]} 4. Nc3 {[%emt 0:00:25]} d6 {[%emt 0:00:04]} 5. e4 {[%emt 0:02:47]} g6 {[%emt 0:00:05]} 6. Bd3 {[%emt 0:02:15]} Bg7 {[%emt 0:00:24]} 7. h3 {[%emt 0:00:25]} O-O {[%emt 0:00:04]} 8. Nf3 {[%emt 0:00:24]} Na6 {[%emt 0:00:13]} 9. O-O {[%emt 0:00:37]} e5 {[%emt 0:00:46]} 10. Re1 {[%emt 0:10:29] [#] E90: King's Indian: Classical: Early deviations and 6 h3.} Kh8 $146 {[%emt 0:07:07]} ({Predecessor:} 10... Nh5 11. a3 Qe7 12. Rb1 Nf4 13. Bf1 g5 14. Nh2 Bd7 15. Ng4 f5 16. exf5 Bxf5 17. Ra1 h5 {½-½ (73) Grachev,B (2683)-Vitiugov,N (2734) Khanty-Mansiysk 2013}) 11. Bf1 {[%emt 0:02:40] White is more active.} Ng8 {[%emt 0:00:21][%cal Bf6g8,Bg8h6,Bh6f7,Bf7g5,Bg5f3][%mdl 32]} 12. a4 {[%emt 0:17:36]} (12. Bg5 $16 f6 13. Bd2) 12... Bh6 $11 {[%emt 0:15:53]} 13. Bxh6 {[%emt 0:08:14]} Nxh6 {[%emt 0:00:04]} 14. Qd2 {[%emt 0:00:08]} Kg7 {[%emt 0:01:59]} 15. Ra3 {[%emt 0:00:15]} f6 {[%emt 0:09:33]} 16. g3 {[%emt 0:02:35]} Nf7 {[%emt 0:00:41]} 17. Bg2 {[%emt 0:01:40]} Ng5 {[%emt 0:03:01]} 18. Kh2 {[%emt 0:04:41]} Nxf3+ {[%emt 0:01:21]} 19. Bxf3 {[%emt 0:00:02]} f5 {[%emt 0:00:23]} 20. exf5 $1 {[%emt 0:01:04]} Bxf5 {[%emt 0:00:11]} 21. Be4 {[%emt 0:08:42]} Qd7 {[%emt 0:07:11]} 22. Bxf5 {[%emt 0:00:38]} Rxf5 {[%emt 0:00:08]} 23. Ne4 {[%emt 0:01:02]} Raf8 {[%emt 0:00:39]} 24. Kg2 {[%emt 0:01:00]} Nb4 {[%emt 0:02:21]} (24... Rh5 $2 25. g4 Rh4 26. Qg5 $18) 25. Re2 {[%emt 0:03:20]} h6 {[%emt 0:00:11] Inhibits Ng5.} (25... Rh5 $2 26. g4 Rh4 27. Ng5 $18) 26. Rae3 {[%emt 0:00:48][%cal Of2f4]} R8f7 {[%emt 0:02:01]} (26... Rh5 $2 27. g4 Rh4 28. Qc3 $18) 27. b3 {[%emt 0:01:09]} a5 {[%emt 0:06:12]} (27... Rh5 28. g4 Rh4 29. Qc3 $18) 28. f3 {[%emt 0:04:56]} b6 {[%emt 0:03:08]} (28... Rh5 29. g4 Rh4 30. Qe1 $16) (28... Qd8 $14) 29. Nf2 {[%emt 0:00:28][%cal Of3f4,Be4f2,Bf2h3,Bh3f4][%mdl 32]} Qd8 {[%emt 0:01:59]} 30. h4 $1 {[%emt 0:02:09]} Qf8 {[%emt 0:10:14]} 31. Qc3 {[%emt 0:00:59]} Kh7 {[%emt 0:00:04]} (31... Kg8 $16) 32. Nh3 $1 $18 {[%emt 0:01:10]} Na6 $2 {[%emt 0:03:13]} (32... Qg7 {was worth a try.} 33. f4 exf4 34. Qxg7+ (34. Nxf4 Qxc3 35. Rxc3 g5 $16) 34... Kxg7 35. Nxf4 g5) 33. f4 $1 {[%emt 0:01:47]} exf4 {[%emt 0:00:16]} 34. Nxf4 {[%emt 0:00:16]} Nc7 {[%emt 0:00:20]} 35. Qc2 {[%emt 0:02:48]} Qg7 {[%emt 0:02:06]} (35... h5 36. Qc3 Kg8) 36. h5 {[%emt 0:05:55]} gxh5 {[%emt 0:03:53] [#]} 37. Re7 $3 {[%emt 0:02:08][%mdl 512]} Rxe7 {[%emt 0:01:45]} 38. Qxf5+ {[%emt 0:00:27]} Kg8 {[%emt 0:00:01]} 39. Rxe7 {[%emt 0:02:10]} Qxe7 {[%emt 0:00:02][%mdl 4096] Endgame KQN-KQN} 40. Qg6+ {[%emt 0:01:11]} Kf8 {[%emt 0:02:23]} 41. Qxh6+ {[%emt 0:01:13]} Kg8 {[%emt 0:00:01]} 42. Qg6+ {[%emt 0:00:26]} Kf8 {[%emt 0:00:33]} 43. Qxh5 {[%emt 0:00:19] Threatening mate with Ng6+.} Qe4+ {[%emt 0:00:15]} 44. Kh2 {[%emt 0:01:44]} Ne8 {[%emt 0:00:48]} (44... Ke7 $142 45. Qg4 Qd4) 45. Ne6+ {[%emt 0:02:35]} Ke7 {[%emt 0:00:02]} 46. Qg5+ {[%emt 0:01:51]} Kf7 {[%emt 0:00:01]} 47. Nd8+ {[%emt 0:00:10]} Kf8 {[%emt 0:00:05]} 48. Ne6+ $2 {[%emt 0:00:01]} (48. Qh6+ Ke7 49. Ne6) 48... Kf7 {[%emt 0:00:01]} 49. Qh5+ {[%emt 0:04:16]} Ke7 {[%emt 0:00:02]} 50. Ng5 {[%emt 0:00:14]} Qf5 {[%emt 0:01:46] Prevents Qf7+.} 51. Qe2+ {[%emt 0:01:12]} Kd8 {[%emt 0:00:03]} 52. Ne4 {[%emt 0:00:35]} Qe5 {[%emt 0:00:27]} 53. Qg4 {[%emt 0:00:53] aiming for Qg5+.} Qb2+ {[%emt 0:01:43]} 54. Kh3 {[%emt 0:00:04] And now Qg5+ would win.} Qxb3 $2 {[%emt 0:00:29]} (54... Qa1 $18 55. Qg5+ Kd7 56. Qg4+ (56. Qg6 Qh1+ 57. Kg4 Qd1+ 58. Kf4 Qf1+ 59. Ke3 Qc1+ 60. Kf3 Qd1+ 61. Kg2 Qxb3 $18) 56... Kd8 57. Qg5+ Kd7 58. Qg4+ (58. Qg6 Qh1+ 59. Kg4 Qd1+ 60. Kh4 Qh1+ 61. Kg5 Qc1+ 62. Kh5 Qh1+ 63. Kg5 Qc1+ 64. Kh5 Qh1+ 65. Kg5 $16) 58... Kd8) 55. Qg5+ {[%emt 0:00:20]} (55. Qg8 Qxa4 56. Nf6 Ke7 57. Qe6+ Kd8 $11) 55... Kd7 {[%emt 0:00:00]} 56. Qf5+ $1 {[%emt 0:00:11]} Kd8 {[%emt 0:00:01]} 57. Qg5+ $2 {[%emt 0:01:38]} (57. Qf8 Qd1 58. Nxd6 Qh5+ 59. Kg2 Qe2+ 60. Kh3 Qh5+ 61. Kg2 Qe2+ 62. Kh3 Qh5+ $11) (57. Ng5 $1 $18 {[%cal Rg5e6] White threatens Ne6+ and mate.} Qxc4 58. Qf7) 57... Kd7 $11 {[%emt 0:00:01]} 58. Qg4+ {[%emt 0:00:38]} Kd8 $2 {[%emt 0:00:33][%mdl 8192]} (58... Kc7 $11 59. Nxd6 Nxd6 60. Qg7+ Kc8 61. Qf8+ Kd7 62. Qg7+ Kc8 63. Qf8+ Kd7 64. Qg7+ Kc8) 59. Qh4+ $1 $18 {[%emt 0:00:36]} (59. Qg8 Qxa4 60. Nf6 Ke7 61. Qe6+ Kd8 $11) 59... Kd7 {[%emt 0:02:19]} 60. Qh7+ $1 {[%emt 0:00:29]} Kd8 {[%emt 0:00:01] [#]} 61. Ng5 $1 {[%emt 0:00:50]} Qxc4 $2 {[%emt 0:02:58]} (61... Qd1 62. Ne6+ Kc8) 62. Ne6+ {[%emt 0:00:13]} ({And not} 62. Qb7 Qf1+ 63. Kh4 Nc7 64. Qxb6 Qh1+ 65. Nh3 Qxd5 $17) (62. Qf7 $142 Kc8 63. Qxe8+ Kb7 64. Qc6+ Ka7 65. Qxd6 Qf1+ 66. Kh4 Qh1+ 67. Kg4 Qd1+ 68. Kf5 Qf1+ 69. Kg6 Qd3+ 70. Kh6) 62... Kc8 {[%emt 0:00:00] [#]} 63. Qf7 $1 {[%emt 0:00:24]} Qxd5 {[%emt 0:02:38]} 64. Qxe8+ {[%emt 0:00:05]} Kb7 {[%emt 0:00:01]} 65. Qe7+ {[%emt 0:00:42]} Kb8 {[%emt 0:00:01]} 66. Qe8+ {[%emt 0:01:04]} Kb7 $1 {[%emt 0:00:10]} 67. Nf4 {[%emt 0:00:36]} Qf5+ {[%emt 0:00:47]} 68. Kh4 {[%emt 0:00:17]} c4 {[%emt 0:00:17]} 69. Qh8 {[%emt 0:00:54] Against Qh7+} (69. Qe7+ $18 {has better winning chances.} Kc6 70. Ne2) 69... Kc6 $2 {[%emt 0:01:29][%mdl 8192]} (69... Qf7 $16 {is a better chance.}) 70. Qd4 {[%emt 0:00:19]} b5 {[%emt 0:00:29]} (70... Qh7+ $142 71. Kg4 Qd7+ 72. Kf3 b5 73. Qd5+ Kb6) 71. axb5+ {[%emt 0:00:06]} Kxb5 {[%emt 0:00:09]} 72. Nd5 $2 {[%emt 0:00:50]} (72. g4 $18 Qh7+ 73. Kg3) 72... Qd3 {[%emt 0:01:07]} (72... Qe5 $2 73. Qb6+ Ka4 74. Qc6+ Ka3 75. Qxc4 $18) (72... Qh7+ $16 {was necessary.} 73. Kg4 (73. Kg5 Qd3 $16) 73... Qd3 74. Qb6+ Ka4 75. Qxd6 Qd4+ 76. Kh5 Kb3) 73. Qb6+ {[%emt 0:00:16]} Ka4 {[%emt 0:00:01]} 74. Qxd6 {[%emt 0:00:25] White wants to mate with Qc6+.} Qd4+ {[%emt 0:00:12]} 75. Kh3 {[%emt 0:00:20]} Kb3 {[%emt 0:00:14]} 76. Qb8+ {[%emt 0:00:35]} Kc2 $2 {[%emt 0:00:01][%mdl 8192]} (76... Ka4 $16) 77. Qb5 {[%emt 0:00:14]} Qe4 {[%emt 0:01:48]} 78. Qa4+ $2 {[%emt 0:01:05]} (78. Qxa5 $18 {is the precise move to win.} Qh1+ 79. Kg4 Qe4+ 80. Kg5 Qe5+ 81. Kh4 Qd4+ 82. g4) 78... Kb2 $16 {[%emt 0:00:28]} 79. Qxa5 {[%emt 0:00:42]} ({White should try} 79. Qc6 $16 {Intending Qf6+ and mate.} Qh1+ 80. Kg4 Qd1+ 81. Kh4 Qh1+ 82. Kg5 Qc1+ 83. Kh5 Qh1+ 84. Kg5 Qc1+ 85. Kh5 Qh1+ 86. Kg5) 79... Qh1+ $2 {[%emt 0:01:16][%mdl 8192]} (79... Qh7+ $11 80. Kg4 Qe4+ 81. Kg5 Qe5+ 82. Kh4 Qh8+ 83. Kg4 Qd4+ 84. Kh3 Qd3 85. Qb4+ Kc1 86. Qc3+ Qxc3 87. Nxc3 Kc2) 80. Kg4 {[%emt 0:00:00]} Qe4+ {[%emt 0:00:02]} 81. Kh3 {[%emt 0:00:34]} Qh1+ {[%emt 0:00:01]} 82. Kg4 {[%emt 0:00:03]} Qe4+ {[%emt 0:00:09]} 83. Nf4 {[%emt 0:00:13] White mates.} c3 {[%emt 0:00:06]} 84. Qb5+ {[%emt 0:00:13]} Kc1 {[%emt 0:01:38]} 85. Qd3 {[%emt 0:02:46]} Qb4 {[%emt 0:01:05] [#]} 86. Qxc3+ $3 {[%emt 0:00:00][%mdl 512] Weighted Error Value: White=0.34/Black=0.51} 1-0

[Event "Uppsala GM June 2022"]
[Site "Uppsala"]
[Date "2022.06.15"]
[Round "3.4"]
[White "Larkin, Vladyslav"]
[Black "Falkevall, Axel"]
[Result "1-0"]
[ECO "B31"]
[WhiteElo "2430"]
[BlackElo "2290"]
[Annotator "RC"]
[PlyCount "57"]
[EventDate "2022.06.09"]
[EventType "tourn"]
[EventCountry "SWE"]
[SourceTitle "playchess.com"]
[Source "ChessBase"]
[SourceQuality "1"]
[TimeControl "5400+30"]

1. e4 {[%emt 0:10:13]} c5 {[%emt 0:00:12]} 2. Nf3 {[%emt 0:00:09]} Nc6 {[%emt 0:00:06]} 3. Bb5 {[%emt 0:00:12]} g6 {[%emt 0:00:14]} 4. Bxc6 {[%emt 0:00:05]} bxc6 {[%emt 0:00:10]} 5. O-O {[%emt 0:00:09]} Bg7 {[%emt 0:00:20]} 6. Re1 {[%emt 0:00:07]} Nf6 {[%emt 0:02:54]} 7. e5 {[%emt 0:01:32]} Nd5 {[%emt 0:00:35]} 8. b3 {[%emt 0:00:05]} O-O {[%emt 0:02:24]} 9. Bb2 {[%emt 0:00:04]} d6 {[%emt 0:05:27]} 10. h3 {[%emt 0:00:43]} Bb7 {[%emt 0:06:33]} 11. Na3 {[%emt 0:03:11]} a5 {[%emt 0:04:55]} 12. Nc4 {[%emt 0:01:09]} a4 {[%emt 0:02:08]} 13. exd6 {[%emt 0:11:09]} exd6 {[%emt 0:00:12]} 14. Bxg7 {[%emt 0:00:05]} Kxg7 {[%emt 0:00:05]} 15. d4 {[%emt 0:00:15]} cxd4 {[%emt 0:03:02]} 16. Qxd4+ {[%emt 0:00:08]} Kg8 {[%emt 0:00:27]} 17. Rad1 {[%emt 0:05:10]} c5 {[%emt 0:02:48]} 18. Qe4 {[%emt 0:01:00]} axb3 {[%emt 0:10:18]} 19. axb3 {[%emt 0:00:07]} Ra2 {[%emt 0:08:16]} 20. Rxd5 {[%emt 0:00:53]} Qa8 {[%emt 0:01:55]} 21. Qd3 {[%emt 0:06:26]} Bxd5 {[%emt 0:02:26]} 22. Nb6 {[%emt 0:00:04]} Qa5 {[%emt 0:01:22]} 23. Nxd5 {[%emt 0:00:17]} Ra1 {[%emt 0:00:22]} 24. Rxa1 {[%emt 0:00:27]} Qxa1+ {[%emt 0:00:04]} 25. Kh2 {[%emt 0:00:03]} Re8 {[%emt 0:00:37]} 26. Qb5 {[%emt 0:02:06]} Re6 {[%emt 0:00:37]} 27. Nc7 {[%emt 0:00:17]} Re7 {[%emt 0:02:05]} 28. Qb8+ {[%emt 0:00:06]} Kg7 {[%emt 0:00:03]} 29. Ne8+ {[%emt 0:00:09]} 1-0

[Event "Uppsala GM June 2022"]
[Site "Uppsala"]
[Date "2022.06.15"]
[Round "3.5"]
[White "Trost, Edvin"]
[Black "Peng, Li Min"]
[Result "1/2-1/2"]
[ECO "D20"]
[WhiteElo "2366"]
[BlackElo "2506"]
[Annotator "TA"]
[PlyCount "48"]
[EventDate "2022.06.09"]
[EventType "tourn"]
[EventCountry "SWE"]
[SourceTitle "playchess.com"]
[Source "ChessBase"]
[SourceQuality "1"]
[TimeControl "5400+30"]

{[%evp 10,48,33,39,34,29,39,32,53,21,14,3,31,0,0,-12,-9,-6,0,-21,-23,-13,-15,-19,4,8,0,7,4,-17,0,0,54,0,50,0,49,0,58,0,43]} 1. d4 {[%emt 0:00:14]} d5 {[%emt 0:00:07]} 2. c4 {[%emt 0:00:18]} dxc4 {[%emt 0:00:07]} 3. e4 {[%emt 0:03:36]} Nc6 {[%emt 0:00:05][%cal Bb8c6,Bc6e5,Be5g6][%mdl 32]} 4. d5 {[%emt 0:01:02]} Ne5 {[%emt 0:00:03]} 5. Nf3 {[%emt 0:01:26]} Bg4 {[%emt 0:05:53]} 6. Bf4 {[%emt 0:01:49]} Ng6 {[%emt 0:00:49] D20: Queen's Gambit Accepted: 3 e3 and 3 e4.} 7. Bg3 {[%emt 0:02:33]} e5 {[%emt 0:00:48]} 8. Bxc4 {[%emt 0:00:57]} Bd6 {[%emt 0:00:05] White is slightly better.} 9. h3 {[%emt 0:02:00]} Bd7 {[%emt 0:00:06]} 10. Nc3 {[%emt 0:01:48]} a6 {[%emt 0:00:08] [#]} 11. Be2 $146 {[%emt 0:06:28]} ({Predecessor:} 11. a4 Nf6 12. O-O O-O 13. Nd2 Qe7 14. Bd3 Nf4 15. Bxf4 exf4 16. Nc4 Be5 17. Re1 {0-1 (58) Matuszewski,M (2468)-Tazbir,M (2524) Hucisko 2016}) 11... Nf6 {[%emt 0:01:02]} 12. Nd2 {[%emt 0:02:56]} O-O {[%emt 0:00:06]} 13. O-O {[%emt 0:00:31]} Re8 {[%emt 0:00:02]} 14. Bh5 {[%emt 0:14:03]} Nxh5 {[%emt 0:04:59]} 15. Qxh5 {[%emt 0:00:19]} b5 {[%emt 0:00:02][%cal Bb7b5,Bb5b4][%mdl 32]} (15... Nf4 {looks sharper.} 16. Bxf4 exf4 17. Rfe1 b5) 16. Rac1 {[%emt 0:03:43]} c5 {[%emt 0:13:37]} 17. dxc6 {[%emt 0:01:38]} Bxc6 {[%emt 0:00:05]} 18. Rfd1 {[%emt 0:02:22]} Rc8 {[%emt 0:02:00]} 19. Nf1 {[%emt 0:01:17]} b4 {[%emt 0:04:37]} 20. Nd5 {[%emt 0:07:46]} Qa5 {[%emt 0:00:05]} (20... Bxd5 $11 21. Rxc8 (21. exd5 Bc5 $11) 21... Qxc8) 21. Ra1 {[%emt 0:00:03]} (21. Nfe3 $14 Bc5 22. Nf5) 21... Qd8 {[%emt 0:00:04]} ({Better is} 21... Bc5 $11) 22. Rac1 {[%emt 0:00:06]} Qa5 {[%emt 0:00:03]} 23. Ra1 {[%emt 0:00:04]} Qd8 {[%emt 0:00:02]} 24. Rac1 {[%emt 0:00:06]} (24. Nfe3 $5 {[%cal Rd5b6]}) 24... Qa5 {[%emt 0:00:49] Weighted Error Value: White=0.18 (very precise) /Black=0.12 (very precise)} 1/2-1/2

[Event "Uppsala GM June 2022"]
[Site "Uppsala"]
[Date "2022.06.15"]
[Round "4.1"]
[White "Ernst, Thomas"]
[Black "Nilsson, Joakim"]
[Result "1-0"]
[ECO "B47"]
[WhiteElo "2300"]
[BlackElo "2237"]
[Annotator "TA"]
[PlyCount "105"]
[EventDate "2022.06.09"]
[EventType "tourn"]
[EventCountry "SWE"]
[SourceTitle "playchess.com"]
[Source "ChessBase"]
[SourceQuality "1"]
[TimeControl "5400+30"]

{[%evp 23,105,36,16,-12,2,8,7,0,13,12,72,76,80,77,80,78,85,79,110,109,111,105,120,112,127,106,168,123,135,124,131,120,112,112,113,116,127,133,154,148,175,160,275,268,400,372,376,379,575,569,552,271,273,272,411,194,206,0,390,356,412,410,295,295,29981,29982,29982,29983,29981,29977,29977,29978,29977,29979,29979,29977,29981,29981,29981,29981,29975,29975,29990,29991]} 1. e4 {[%emt 0:00:04]} c5 {[%emt 0:00:05]} 2. Nf3 {[%emt 0:00:10]} Nc6 {[%emt 0:00:06]} 3. d4 {[%emt 0:00:04]} cxd4 {[%emt 0:00:04]} 4. Nxd4 {[%emt 0:00:04]} e6 {[%emt 0:00:07]} 5. Nc3 {[%emt 0:00:14]} Qc7 {[%emt 0:00:14]} 6. g3 {[%emt 0:00:23]} a6 {[%emt 0:00:21]} 7. Bg2 {[%emt 0:00:11]} Nf6 {[%emt 0:00:13]} 8. O-O {[%emt 0:00:15]} Be7 {[%emt 0:00:07]} 9. Re1 {[%emt 0:00:33]} O-O {[%emt 0:02:48]} 10. Nxc6 {[%emt 0:00:38]} dxc6 {[%emt 0:00:19]} 11. e5 {[%emt 0:00:19]} Rd8 {[%emt 0:00:37]} 12. Qf3 {[%emt 0:05:13]} Nd5 {[%emt 0:00:41]} 13. Nxd5 {[%emt 0:00:40] B47: Sicilian: Taimanov: 5 Nc3 Qc7 6 f4, 6 g3 and 6 Be2.} cxd5 {[%emt 0:01:46]} 14. c3 {[%emt 0:02:18][%cal Bc2c3,Bc3d4][%mdl 32]} Bd7 {[%emt 0:13:08] [#]} 15. h4 $146 {[%emt 0:02:41] The position is equal.} ({Predecessor:} 15. Be3 b5 16. Bd4 a5 17. Qe3 Rdc8 18. Rac1 Ra6 19. f4 Qb8 20. g4 b4 21. Bf1 {1-0 (44) Leskiewicz,I (2138)-Czopor,M (2227) Ustron 2019}) 15... Bc6 {[%emt 0:03:12]} 16. Qg4 {[%emt 0:01:42]} d4 {[%emt 0:13:39]} (16... Kh8 $11 {keeps the balance.}) 17. cxd4 $16 {[%emt 0:06:27]} Bxg2 {[%emt 0:01:04]} 18. Kxg2 {[%emt 0:00:08]} Qc6+ {[%emt 0:03:26]} 19. Kg1 {[%emt 0:02:17]} Rac8 {[%emt 0:09:06]} 20. Be3 {[%emt 0:04:11]} f5 {[%emt 0:01:52]} 21. exf6 {[%emt 0:03:03]} Bxf6 {[%emt 0:00:05]} 22. Rad1 {[%emt 0:00:53]} Qd5 {[%emt 0:02:32]} 23. Bg5 {[%emt 0:04:19]} Kf7 {[%emt 0:01:49]} 24. Rc1 {[%emt 0:21:54]} b5 {[%emt 0:08:34]} (24... Rxc1 $16 25. Rxc1 Bxg5 26. hxg5 Kg8) 25. Bxf6 $40 {[%emt 0:05:36][%mdl 128] White is out for blood. Really sharp!} gxf6 {[%emt 0:00:11]} 26. Qf4 {[%emt 0:00:23]} Rc4 {[%emt 0:08:36]} 27. Qh6 {[%emt 0:08:00] [#] aiming for b3.} Qf5 {[%emt 0:00:20]} 28. Rxc4 {[%emt 0:00:47]} bxc4 {[%emt 0:00:03][%mdl 4096] Endgame KQR-KQR} 29. Qe3 {[%emt 0:00:22]} Qd5 {[%emt 0:02:07]} 30. b3 {[%emt 0:00:53]} cxb3 {[%emt 0:04:59]} 31. axb3 {[%emt 0:00:07]} Rc8 {[%emt 0:03:47]} 32. Qd3 {[%emt 0:01:25][%csl LRa6,LRh7]} Kg7 {[%emt 0:02:27]} (32... Qf5 $16 33. Qxa6 Rc2) 33. Qxa6 $18 {[%emt 0:01:07]} Rc6 {[%emt 0:00:07]} (33... Rc3 $142 34. Qa7+ Kg6) 34. Qb7+ {[%emt 0:05:59]} Kg6 {[%emt 0:01:06]} 35. Qb8 {[%emt 0:03:05] [#] Qg8+ is the strong threat.} Qf3 {[%emt 0:03:08]} (35... Rc3 $142 36. Qg8+ Kh6 37. Qf8+ Kg6 38. Qg8+ Kh6 39. Qxe6 Qxe6 40. Rxe6 Kg6) 36. Qg8+ {[%emt 0:03:43]} Kh6 {[%emt 0:00:18]} 37. b4 {[%emt 0:00:55]} (37. g4 $142) 37... Rc2 {[%emt 0:02:27]} 38. Rf1 {[%emt 0:00:07]} Qf5 {[%emt 0:00:45]} (38... Re2 {keeps fighting.} 39. b5 Rb2 40. Qxe6 Rxb5 41. Qe3+ Qxe3 42. fxe3 Kg6) 39. Qf8+ {[%emt 0:07:48]} (39. g4 $142 Rc8 40. gxf5 (40. Qxc8 Qxg4+ 41. Kh2 Qxh4+ 42. Kg2 Qg4+ 43. Kh2 Qh4+ 44. Kg2 Qg4+ 45. Kh2 Qh4+ $11) 40... Rxg8+ 41. Kh2) 39... Kg6 {[%emt 0:01:11]} 40. Qg8+ $2 {[%emt 0:05:26]} (40. Qb8) 40... Kh6 {[%emt 0:00:14]} 41. g4 {[%emt 0:00:44][%cal Bg3g4,Bg4g5,Bg5f6,Bf6f7][%mdl 32]} Qe4 {[%emt 0:02:19][%cal Oc2c8]} 42. g5+ {[%emt 0:01:28]} Kh5 {[%emt 0:00:15]} 43. gxf6 {[%emt 0:00:12][%csl Gh4][%cal Rg8g5]} Kxh4 {[%emt 0:02:25]} (43... Qg6+ $18 44. Qxg6+ Kxg6) 44. f7 {[%emt 0:01:58] White mates.} Rc8 {[%emt 0:00:08]} 45. Kh2 {[%emt 0:00:45]} ({Worse is} 45. Qxc8 Qg4+ 46. Kh2 Qh3+ 47. Kg1 Qg4+ 48. Kh2 Qh3+ 49. Kg1 Qg4+ $11) 45... Qf5 {[%emt 0:05:49]} 46. Qg3+ {[%emt 0:00:55]} ({Not} 46. Qxc8 Qh3+ 47. Kg1 Qg4+ 48. Kh2 Qh3+ 49. Kg1 Qg4+ 50. Kh2 Qh3+ $11) 46... Kh5 {[%emt 0:00:06]} 47. Re1 {[%emt 0:00:21]} Kh6 {[%emt 0:01:20]} 48. Re5 {[%emt 0:00:24]} Qf6 {[%emt 0:00:04]} 49. Kh3 {[%emt 0:01:04]} Ra8 {[%emt 0:04:09]} 50. f3 {[%emt 0:01:53]} Qg6 {[%emt 0:00:41]} 51. Qh4+ {[%emt 0:00:24]} Kg7 {[%emt 0:00:13]} 52. Rg5 {[%emt 0:00:07]} Rh8 {[%emt 0:00:09]} 53. Rxg6+ {[%emt 0:00:23] Weighted Error Value: White=0.25 (precise) /Black=0.49} 1-0

[Event "Uppsala GM June 2022"]
[Site "Uppsala"]
[Date "2022.06.15"]
[Round "4.2"]
[White "Von Bahr, Oskar"]
[Black "Trost, Edvin"]
[Result "1-0"]
[ECO "B61"]
[WhiteElo "2373"]
[BlackElo "2366"]
[Annotator "TA"]
[PlyCount "83"]
[EventDate "2022.06.09"]
[EventType "tourn"]
[EventCountry "SWE"]
[SourceTitle "playchess.com"]
[Source "ChessBase"]
[SourceQuality "1"]
[TimeControl "5400+30"]

{[%evp 12,83,41,39,50,54,52,45,48,47,41,44,40,40,106,95,118,85,136,134,158,164,152,155,154,140,167,127,148,144,206,-110,27,0,0,1,34,-73,206,203,512,462,489,497,490,483,635,594,634,646,760,742,792,809,942,801,5798,5791,5705,5589,5377,5385,5287,4778,29971,29972,29979,29980,29983,29984,29985,29986,29987,29988]} 1. e4 {[%emt 0:00:05]} c5 {[%emt 0:00:28]} 2. Nf3 {[%emt 0:00:12][%cal Bg1f3,Bf3d4,Bd4f5][%mdl 32]} Nc6 {[%emt 0:00:32]} 3. d4 {[%emt 0:00:16]} cxd4 {[%emt 0:00:35]} 4. Nxd4 {[%emt 0:00:04]} Nf6 {[%emt 0:00:32]} 5. Nc3 {[%emt 0:00:08]} d6 {[%emt 0:00:48]} 6. Bg5 {[%emt 0:00:21]} Bd7 {[%emt 0:00:31]} 7. Qd2 {[%emt 0:00:59]} h6 {[%emt 0:00:28] Recently 7...a6 got a lot of attention. B61: Sicilian: Richter-Rauzer: 6...Bd7 7 Qd2.} 8. Bxf6 {[%emt 0:00:17]} gxf6 {[%emt 0:00:05]} 9. Nf5 {[%emt 0:01:01]} Qa5 {[%emt 1:31:01] White is slightly better.} 10. Bb5 {[%emt 0:00:48]} a6 {[%emt 0:00:00]} 11. Bxc6 {[%emt 0:00:09]} bxc6 {[%emt 0:00:00] [#]} 12. Qd3 $146 {[%emt 0:00:15]} ({Predecessor:} 12. Ne3 Rb8 13. Qd4 Qb4 14. Qxb4 Rxb4 15. O-O-O h5 16. a3 Rb8 17. Rhe1 h4 18. Nf5 {1-0 (44) Ravagnani,T (1998)-Caprio,G (2427) Rocca Priora 2012}) 12... Qc5 {[%emt 0:00:00]} (12... d5 $14 13. O-O-O (13. exd5 cxd5 14. O-O-O e6 $11) 13... Bxf5 14. exf5 h5) 13. O-O $16 {[%emt 0:10:39]} a5 {[%emt 0:00:00]} 14. Rad1 {[%emt 0:05:11]} h5 {[%emt 0:00:00]} (14... a4 $142) 15. b3 {[%emt 0:03:17]} Rd8 {[%emt 0:00:00]} 16. Na4 {[%emt 0:02:14]} Qa7 {[%emt 0:00:00]} 17. c4 {[%emt 0:11:19][%cal Bc2c4,Bc4c5][%mdl 32]} Bc8 {[%emt 0:00:00]} 18. Qc3 {[%emt 0:03:59]} Rg8 {[%emt 0:00:00]} 19. c5 {[%emt 0:02:28] Black must now prevent cxd6.} d5 {[%emt 0:00:00]} 20. Nd4 {[%emt 0:09:32] Pair of Knights!} Qc7 {[%emt 0:00:00]} (20... Qb7 $16 {was called for.}) 21. Qe3 $2 {[%emt 0:05:47] Active counter play!} (21. exd5 $1 $18 cxd5 22. c6) 21... Bg4 {[%emt 0:00:00]} ({Black should try} 21... dxe4 $1 $17 22. Ne2 (22. Qxe4 Bh3 $17) 22... f5) 22. Rd3 {[%emt 0:05:30]} e5 {[%emt 0:00:00]} 23. exd5 $1 {[%emt 0:06:53]} Rxd5 {[%emt 0:00:00]} (23... cxd5 {looks sharper.} 24. f4 Be7 25. fxe5 fxe5 26. Qf2 f6) 24. Nc3 {[%emt 0:09:52] [#]} (24. h3 $14 {keeps the upper hand.} Bc8 25. Rfd1) 24... Rxd4 $4 {[%emt 0:00:00][%mdl 8192] A mistake that costs the game.} 25. Rxd4 $18 {[%emt 0:01:50][%cal Oc3e4] Ne4! is the strong threat.} Bxc5 $2 {[%emt 0:00:00] [#]} (25... Bh3 {is tougher.}) 26. Rxg4 $1 {[%emt 0:01:02][%mdl 512]} Bxe3 {[%emt 0:00:00]} 27. Rxg8+ {[%emt 0:00:07]} Ke7 {[%emt 0:00:00]} 28. fxe3 {[%emt 0:00:26]} Qd6 {[%emt 0:00:34]} 29. Rg3 {[%emt 0:02:43][%cal Bg8g3,Bg3f3,Bf3f6][%mdl 32]} Qd3 {[%emt 0:00:45]} 30. e4 {[%emt 0:01:59]} Qc2 {[%emt 0:00:52]} 31. Rgf3 {[%emt 0:01:41]} h4 {[%emt 0:00:14]} 32. h3 {[%emt 0:00:36]} Kd8 {[%emt 0:00:47]} 33. Kh2 {[%emt 0:02:04]} Kc8 {[%emt 0:00:10]} 34. R1f2 {[%emt 0:00:22]} Qc1 {[%emt 0:00:04]} 35. Na4 {[%emt 0:00:56]} Qe1 {[%emt 0:00:32]} 36. Rxf6 {[%emt 0:00:14]} Qxe4 {[%emt 0:00:07]} 37. Rxf7 {[%emt 0:00:21] Intending Rg7 and mate.} Qd4 {[%emt 0:00:54]} 38. R2f6 {[%emt 0:02:22] White mates.} e4 {[%emt 0:00:23]} 39. Rg6 {[%emt 0:01:44]} Qe5+ {[%emt 0:00:29]} 40. g3 {[%emt 0:02:13]} hxg3+ {[%emt 0:00:04]} 41. Kg2 {[%emt 0:00:16]} Qe8 {[%emt 0:00:02]} 42. Nb6+ {[%emt 0:00:30] Weighted Error Value: White=0.41/Black=0.76} 1-0